Cogmind - Beta 15 @@@ ROGUE MODE // 2025.07.21 @ 15:59:39 Player: 7604 Result: Self-destructed Performance ------------- Evolutions (6) 3000 Regions Visited (17) 3400 Robots Destroyed (107) 535 Value Destroyed (2797) 2797 Prototype IDs (49) 980 Alien Tech Used (0) 0 Bonus (677) 677 TOTAL SCORE: 11389 Bonus ------- Follower Combat Kills 260 Registered with UFD 300 Met Optimus in HQ 500 Friendly Fire -383 Cogmind --------- Core Integrity 1110/1150 Matter 270/300 Energy 309/315 System Corruption 0% Temperature Cool (0) Movement Rolling (70) Location -4/Factory Parts ------- > --- POWER (1) -------- Neutrino Core > --- PROPULSION (6) --- Overtuned Huge Scrapsphere Overtuned Huge Scrapsphere > --- UTILITY (10) ----- Scrap Suit Medium Storage Unit Machine Analyzer Improved Signal Interpreter Advanced Melee Analysis Suite Advanced Melee Analysis Suite Advanced Melee Analysis Suite Hacking Suite Makeshift System Shield > --- WEAPON (2) ------- Companion Sword > --- INVENTORY (10) --- Neutrino Core Scrap Suit Transmission Jammer ECM Suite Drone Bay (2/2) Overtuned Coil Gun Overtuned Coil Gun Peak State ------------ > --- POWER ------------ Neutrino Core > --- PROPULSION ------- Overtuned Huge Scrapsphere Overtuned Huge Scrapsphere > --- UTILITY ---------- Scrap Suit Medium Storage Unit Machine Analyzer Improved Signal Interpreter Advanced Melee Analysis Suite Advanced Melee Analysis Suite Advanced Melee Analysis Suite Hacking Suite Makeshift System Shield > --- WEAPON ----------- Companion Sword > --- INVENTORY -------- Neutrino Core Scrap Suit Transmission Jammer ECM Suite Drone Bay Overtuned Coil Gun Overtuned Coil Gun [Rating: 76] Favorites ----------- Power Deuterium Engine Engine Deuterium Engine Power Core Light Nuclear Core Propulsion Light Treads Treads Light Treads Wheel Armored Huge Wheel Hover Unit Gravmag System Flight Unit Improved Flight Unit Utility Seismic Detector Device Seismic Detector Storage Huge Storage Unit Processor Improved Signal Interpreter Hackware Hacking Suite Protection Light Armor Plating Weapon Improved Light Cannon Energy Gun Medium Laser Ballistic Gun Light Assault Rifle Ballistic Cannon Improved Light Cannon Launcher Missile Launcher Impact Weapon Impact Mace Slashing Weapon Companion Sword Special Melee Weapon Datajack Build | -11 -10 -10 -9 -9 -9 -8 -8 -7 -7 -7 -7 -7 -7 -5 -5 -5 -4 ------- Run | Yrd Mat Min Mat Min Exi Min Mat Fac Was Fac Sto Rec Scr Fac Upp Upp Fac Slots Evolved 12 | . . . 2 . . . 2 2 . . . . . 4 . . 2 Power . | . . . . . . . . . . . . . . . . . . Propulsion 4 | . . . 1 . . . 1 1 . . . . . 1 . . . Utility 8 | . . . 1 . . . 1 1 . . . . . 3 . . 2 Weapon . | . . . . . . . . . . . . . . . . . . Parts Attached 114 | 7 7 1 19 1 1 1 14 8 1 6 6 4 7 16 12 . 3 Power 13 | 1 . 1 3 . . . 2 1 . . . . 1 1 3 . . Engine 5 | 1 . . 3 . . . 1 . . . . . . . . . . Core 8 | . . 1 . . . . 1 1 . . . . 1 1 3 . . Reactor . | . . . . . . . . . . . . . . . . . . Propulsion 38 | 2 1 . 7 1 . . 8 3 . 2 3 2 . 6 3 . . Treads 18 | 2 1 . 6 1 . . 7 . . . . . . 1 . . . Leg . | . . . . . . . . . . . . . . . . . . Wheel 3 | . . . . . . . . . . . . . . . 3 . . Hover 2 | . . . . . . . . . . . . 2 . . . . . Flight 15 | . . . 1 . . . 1 3 . 2 3 . . 5 . . . Utility 37 | 2 3 . 4 . . 1 1 3 . 1 1 2 4 7 5 . 3 Device 14 | 1 . . 2 . . 1 . 1 . . 1 . 2 2 4 . . Storage 5 | 1 2 . . . . . . 1 . . . . 1 . . . . Processor 6 | . . . . . . . . . . . . 1 . 1 1 . 3 Hackware 7 | . . . . . . . 1 1 . . . 1 1 3 . . . Protection 5 | . 1 . 2 . . . . . . 1 . . . 1 . . . Artifact . | . . . . . . . . . . . . . . . . . . Weapon 26 | 2 3 . 5 . 1 . 3 1 1 3 2 . 2 2 1 . . Energy Gun 3 | 1 . . 1 . . . 1 . . . . . . . . . . Energy Cannon . | . . . . . . . . . . . . . . . . . . Ballistic Gun 5 | 1 . . 1 . . . . . . . 1 . . 2 . . . Ballistic Cannon 7 | . 2 . 2 . . . 2 . 1 . . . . . . . . Launcher 2 | . 1 . . . . . . . . 1 . . . . . . . Special Weapon . | . . . . . . . . . . . . . . . . . . Impact Weapon 2 | . . . 1 . . . . . . . 1 . . . . . . Slashing Weapon 4 | . . . . . . . . 1 . . . . 2 . 1 . . Piercing Weapon . | . . . . . . . . . . . . . . . . . . Special Melee Weapon 3 | . . . . . 1 . . . . 2 . . . . . . . Unidentified Prototypes 9 | . . . 2 . . . 2 . 1 . 2 . 1 1 . . . Parts Lost 49 | . 1 . 6 1 . . 5 . . 1 16 . . 13 5 1 . Power 7 | . . . 1 . . . . . . . 2 . . 2 2 . . Propulsion 23 | . 1 . 3 1 . . 1 . . 1 7 . . 8 1 . . Utility 14 | . . . 1 . . . 2 . . . 6 . . 2 2 1 . Weapon 5 | . . . 1 . . . 2 . . . 1 . . 1 . . . Highest Loss Streak 14 | . 1 . 4 1 . . 4 . . 1 14 . . 10 4 1 . To Critical Strikes 2 | . 1 . . . . . . . . . . . . . 1 . . Average Backups 15 | 1 8 13 22 24 24 24 24 12 10 9 9 7 9 6 4 7 7 Power 1 | . 1 1 1 1 1 1 1 1 1 . . 1 2 1 . 1 1 Propulsion 1 | . . . 3 4 4 4 4 . . . 1 . . . . . . Utility 5 | . 2 4 5 7 7 7 7 6 7 7 6 4 5 2 3 4 4 Weapon 6 | . 4 6 11 11 11 11 9 4 2 1 1 1 1 1 . 2 2 Tool/Special . | . . . . . . . . . . . . . . . . . . Unused Backups 20 | . 1 . 2 . . . 2 6 . 1 1 . . 2 . . 5 Power 1 | . . . . . . . . . . . . . . . . . 1 Propulsion 4 | . . . . . . . 1 . . . 1 . . 2 . . . Utility 6 | . . . . . . . . 2 . 1 . . . . . . 3 Weapon 9 | . 1 . 2 . . . 1 4 . . . . . . . . 1 Tool/Special . | . . . . . . . . . . . . . . . . . . Average Slot Usage (%) 88 | . 99 100 96 99 100 100 91 96 100 97 85 37 64 60 54 64 60 Engine 6 | . 14 3 10 11 11 11 7 . . . . . . . . . . Core 2 | . . 10 . . . . 1 7 7 7 4 . . 2 3 5 5 Treads 21 | . 27 28 30 32 33 33 32 3 . . . . . 2 . . . Hover 1 | . . . . . . . . . . . . 6 15 3 . . . Flight 3 | . . . . . . . . 31 38 35 31 7 7 11 . . . Device 15 | . 13 13 21 21 22 21 18 15 15 14 13 . 6 2 12 11 5 Storage 9 | . 14 14 10 11 11 11 9 7 7 7 7 7 7 5 . 5 5 Processor 1 | . . . . . . . . . . . . 5 7 5 12 11 18 Hackware 3 | . . . . . . . 4 13 15 15 13 1 10 15 11 11 10 Ballistic Cannon 15 | . 20 28 21 22 12 22 17 2 . . . . . . . . . Slashing Weapon 1 | . . . . . . . . 1 7 6 5 . 6 5 5 5 5 Peak Build Rating 76 | 7 8 11 20 19 19 19 30 37 41 38 41 26 37 62 72 66 76 Average Rating 21 | 5 7 10 17 18 18 19 23 33 37 35 31 18 29 46 44 65 69 On Entrance 25 | . 7 8 11 19 19 19 19 30 37 37 36 11 26 34 21 66 61 Naked Turns . | . . . . . . . . . . . . . . . . . . Heaviest Build 101 | 14 92 94 101 101 99 99 100 95 22 23 24 13 15 31 33 33 32 Greatest Support 82 | 40 40 40 60 60 60 60 82 82 26 26 26 18 18 70 40 40 40 Greatest Overweight (x) 7 | 1 4 2 2 1 1 1 1 7 . 7 2 2 . 2 5 . . Average Overweight (x) . | . 1 2 1 1 1 1 1 . . . . . . . . . . Largest Inventory Capacity 25 | 8 25 25 25 25 25 25 25 25 10 10 10 10 10 10 10 10 10 Average Capacity 19 | 7 18 25 24 25 25 25 25 12 10 10 10 10 10 9 5 10 10 Most Carried 25 | 3 11 15 25 25 24 25 25 25 10 10 10 8 10 10 8 8 8 Average Carried 15 | 1 8 13 22 24 24 24 24 11 10 9 9 7 9 7 4 8 8 Final Capacity 25 | 8 25 25 25 25 25 25 25 10 10 10 10 10 10 5 10 10 10 Final Carried 25 | 3 11 15 25 24 24 25 25 10 10 10 6 7 10 5 8 8 8 Class Distribution -------------------- 43% | Scavenger-Mutant 34% | Mutant 11% | Hacker-Mutant 8% | Hacker-Sprinter Dominant Class ---------------- Mutant | -10/Materials Mutant | -10/Mines Scavenger-Mutant | -9/Materials Scavenger-Mutant | -9/Mines Scavenger-Mutant | -9/Exiles Scavenger-Mutant | -8/Mines Scavenger-Mutant | -8/Materials Hacker-Sprinter | -7/Factory Hacker-Sprinter | -7/Waste Hacker-Sprinter | -7/Factory Hacker-Sprinter | -7/Storage Mutant | -7/Recycling Mutant | -7/Scraptown Hacker-Mutant | -5/Factory Hacker-Mutant | -5/Upper Caves Hacker-Mutant | -5/Upper Caves Scavenger-Scrapper | -4/Factory Resources | -11 -10 -10 -9 -9 -9 -8 -8 -7 -7 -7 -7 -7 -7 -5 -5 -5 -4 ----------- Run | Yrd Mat Min Mat Min Exi Min Mat Fac Was Fac Sto Rec Scr Fac Upp Upp Fac Matter Collected 4068 | 272 306 94 943 150 10 120 440 150 . 168 104 71 50 208 982 . . Remotely . | . . . . . . . . . . . . . . . . . . Salvage Created 2929 | 22 380 154 936 76 . 73 209 53 . 206 79 183 . 197 361 . . Parts 179 | 3 26 18 73 3 . 3 12 2 . 11 3 . . 13 12 . . Haulers Intercepted 7 | . 1 . 3 . . . 1 1 . 1 . . . . . . . Recyclers Shooed 1 | . 1 . . . . . . . . . . . . . . . . Parts Field Recycled . | . . . . . . . . . . . . . . . . . . Retrieved Matter . | . . . . . . . . . . . . . . . . . . Parts Self-Destructed 24 | . . . . . . . . . . . . . . . 24 . . Prevented . | . . . . . . . . . . . . . . . . . . Kills | -11 -10 -10 -9 -9 -9 -8 -8 -7 -7 -7 -7 -7 -7 -5 -5 -5 -4 ------- Run | Yrd Mat Min Mat Min Exi Min Mat Fac Was Fac Sto Rec Scr Fac Upp Upp Fac Combat Hostiles Destroyed 72 | . 11 5 31 3 . 3 6 . . 2 2 . . 6 3 . . Melee 8 | . . . . . . . . . . 2 2 . . 1 3 . . Guns 4 | . 4 . . . . . . . . . . . . . . . . Cannons 46 | . 4 2 28 3 . 3 6 . . . . . . . . . . AOE 14 | . 3 3 3 . . . . . . . . . . 5 . . . Classes Destroyed 16 | 1 5 2 2 . . . 1 . . . 1 . . 2 2 . . Worker 8 | . . 2 2 . . . 2 1 . . . . . 1 . . . Builder 2 | . 1 . . . . . . . . . . . . 1 . . . Tunneler 2 | 1 . 1 . . . . . . . . . . . . . . . Hauler 7 | . 1 . 3 . . . 1 1 . 1 . . . . . . . Recycler 5 | . . 1 . . . . . . . 1 . 3 . . . . . Mechanic 1 | . . . . . . . . . . . . . . 1 . . . Operator 2 | . . . . . . . 1 . . 1 . . . . . . . Watcher 7 | . 2 . 4 . . . 1 . . . . . . . . . . Swarmer 20 | . 3 3 7 . . . . . . 2 . . . 5 . . . Grunt 38 | . 8 2 15 3 . 3 5 . . . . . . . 2 . . Brawler 1 | . . . 1 . . . . . . . . . . . . . . Sentry 9 | . . . 8 . . . 1 . . . . . . . . . . Hunter 1 | . . . . . . . . . . . . . . 1 . . . Programmer 3 | . . . . . . . . . . . 2 . . . 1 . . Scrapoid 1 | . . . . . . . . . . . . . . . 1 . . Samaritan 1 | . . . . . . . . . . . . . . . 1 . . Best Kill Streak 7 | 1 5 3 7 3 . 3 2 1 . 3 1 1 . 5 2 . . Combat Bots Only 7 | . 3 3 7 3 . 3 2 . . 2 1 . . 5 2 . . Max Kills in Single Turn 5 | 1 5 3 3 1 . 1 1 1 . 1 1 1 . 3 1 . . Gunslinging . | . . . . . . . . . . . . . . . . . . Exploded 3 | . 3 3 3 . . . . . . . . . . 3 . . . Melee 1 | . . . . . . . . . . 1 1 . . 1 1 . . Uniques/NPCs Destroyed . | . . . . . . . . . . . . . . . . . . Combat | -11 -10 -10 -9 -9 -9 -8 -8 -7 -7 -7 -7 -7 -7 -5 -5 -5 -4 -------- Run | Yrd Mat Min Mat Min Exi Min Mat Fac Was Fac Sto Rec Scr Fac Upp Upp Fac Hostile Shots Fired 738 | . 49 18 129 40 . 11 53 2 . 23 120 . . 145 130 6 12 Missed 253 | . 17 7 38 8 . 4 13 . . 10 44 . . 60 42 2 8 Hits 485 | . 32 11 91 32 . 7 40 2 . 13 76 . . 85 88 4 4 Melee 1 | . . . 1 . . . . . . . . . . . . . . Projectile 484 | . 32 11 90 32 . 7 40 2 . 13 76 . . 85 88 4 4 AOE 3 | . . . . . . . . . . . . . . 3 . . . Critical Strikes 15 | . 1 . 3 . . . 1 . . . 4 . . 2 4 . . Damage Taken 7369 | . 351 133 1189 391 . 101 651 26 . 339 844 . . 1709 1485 89 61 Core 1680 | . 35 39 133 52 . . 33 26 . 111 222 . . 657 332 . 40 Absorbed by Shields . | . . . . . . . . . . . . . . . . . . Redirected to Shielding 86 | . . . . . . . . . . . . . . 86 . . . Regen/Repaired (Parts) 551 | . 77 . 464 . . . . . . . . . . . 10 . . Core Remaining (%) 61 | 100 . 70 . . . 53 94 . . . . . 48 . . 1 . Volleys Fired 183 | 4 33 4 84 10 . 10 34 . . 2 . . . 2 . . . Largest 2 | 2 2 2 2 2 . 2 2 . . 1 . . . 1 . . . Hottest 75 | 70 70 60 75 66 . 66 66 . . 36 . . . 36 . . . Shots Fired 355 | 8 65 7 164 20 . 20 67 . . 2 . . . 2 . . . Gun 51 | 8 40 . 3 . . . . . . . . . . . . . . Cannon 297 | . 24 6 160 20 . 20 67 . . . . . . . . . . Launcher 7 | . 1 1 1 . . . . . . 2 . . . 2 . . . Special . | . . . . . . . . . . . . . . . . . . Kinetic 321 | 4 44 6 160 20 . 20 67 . . . . . . . . . . Thermal 27 | 4 20 . 3 . . . . . . . . . . . . . . Explosive 7 | . 1 1 1 . . . . . . 2 . . . 2 . . . Electromagnetic . | . . . . . . . . . . . . . . . . . . Robot Hit Streak 25 | 4 9 4 25 9 . 10 11 . . . . . . . . . . Robot Miss Streak 4 | 2 4 . 4 2 . 1 3 . . . . . . . . . . Penetration Max . | . . . . . . . . . . . . . . . . . . Secondary Targets . | . . . . . . . . . . . . . . . . . . Shots Hit Robots 291 | 4 39 4 110 12 4 15 45 7 . 7 7 4 . 9 24 . . Core Hits 126 | 2 23 7 42 3 . 5 17 . . 3 3 . . 13 8 . . Critical Kills 1 | . . . . . . . . . . . 1 . . . . . . Critical Parts Destroyed 3 | . . . . . . . . . . . 2 1 . . . . . Critical Strikes 18 | . 1 . 5 1 . 2 3 . . . 3 1 . . 2 . . Burn 1 | . 1 . . . . . . . . . . . . . . . . Blast 11 | . . . 5 1 . 2 3 . . . . . . . . . . Smash 4 | . . . . . . . . . . . 3 1 . . . . . Melee Attacks 133 | . . . 3 . 4 . 1 28 . 21 20 4 . 22 29 . 1 Impact 31 | . . . 3 . . . . 17 . . 7 4 . . . . . Slashing 95 | . . . . . . . . 9 . 21 13 . . 22 29 . 1 Piercing . | . . . . . . . . . . . . . . . . . . Sneak Attacks 24 | . . . . . 4 . 1 4 . 3 . 4 . 3 5 . . Combat Hostiles . | . . . . . . . . . . . . . . . . . . Follow-up Attacks . | . . . . . . . . . . . . . . . . . . Damage Inflicted 8331 | 44 666 232 2325 308 . 340 984 318 . 399 289 419 . 881 1126 . . Guns 384 | 44 298 . 42 . . . . . . . . . . . . . . Cannons 4002 | . 187 73 2142 308 . 340 952 . . . . . . . . . . Explosions 760 | . 173 126 109 . . . . . . . . . . 352 . . . Melee 3080 | . . . . . . . . 318 . 399 289 419 . 529 1126 . . Ramming 105 | . 8 33 32 . . . 32 . . . . . . . . . . Kinetic 4146 | 8 323 73 2142 308 . 340 952 . . . . . . . . . . Thermal 240 | 36 162 . 42 . . . . . . . . . . . . . . Explosive 760 | . 173 126 109 . . . . . . . . . . 352 . . . Electromagnetic . | . . . . . . . . . . . . . . . . . . Impact 896 | . . . . . . . . 318 . . 159 419 . . . . . Slashing 2184 | . . . . . . . . . . 399 130 . . 529 1126 . . Piercing . | . . . . . . . . . . . . . . . . . . Highest Corruption 11 | . . . . . . . . . 5 5 8 8 . 7 10 11 . Average Corruption 6 | . . . . . . . . . 5 5 6 8 . 2 7 10 . Corruption Purged . | . . . . . . . . . . . . . . . . . . Corruption Blocked . | . . . . . . . . . . . . . . . . . . Effects 79 | . . . . . . . . . 1 11 12 19 . 8 28 . . Message Errors 24 | . . . . . . . . . . 5 2 8 . 1 8 . . Matter Fused 23 | . . . . . . . . . 1 1 4 3 . 3 11 . . Heat Flow Errors 8 | . . . . . . . . . . 1 3 2 . 1 1 . . Energy Discharges 10 | . . . . . . . . . . 2 . 3 . 2 3 . . Parts Rejected 1 | . . . . . . . . . . . 1 . . . . . . Parts Fused 1 | . . . . . . . . . . . 1 . . . . . . Data Loss (minor) 8 | . . . . . . . . . . . . 2 . 1 5 . . Data Loss (major) 4 | . . . . . . . . . . 2 1 1 . . . . . Overload Shots . | . . . . . . . . . . . . . . . . . . Overflow Damage 833 | . . . 75 17 . . . 121 . 87 130 274 . 31 98 . . Projectiles 38 | . . . 21 17 . . . . . . . . . . . . . Explosions 48 | . . . 48 . . . . . . . . . . . . . . Melee 747 | . . . 6 . . . . 121 . 87 130 274 . 31 98 . . Knockbacks 41 | . . . 18 1 . 5 14 . . . 1 2 . . . . . Impact 4 | . . . 1 . . . . . . . 1 2 . . . . . Kinetic 34 | . . . 14 1 . 5 14 . . . . . . . . . . Secondary 3 | . . . 3 . . . . . . . . . . . . . . Self-Inflicted Damage 62 | . . 33 . . . . . . . 29 . . . . . . . Shots 2 | . . 1 . . . . . . . 1 . . . . . . . Rammed 11 | . 2 4 3 . . . 2 . . . . . . . . . . Targets Rammed 15 | . 2 7 3 . . . 3 . . . . . . . . . . Kicked . | . . . . . . . . . . . . . . . . . . Crushed 4 | . . 3 . . . . 1 . . . . . . . . . . Highest Temperature 269 | 40 221 36 12 10 . . 13 8 . 118 241 269 . 238 78 . . Average Temperature 62 | 19 74 15 7 7 . . 4 6 . 79 109 117 . 28 46 . . Received Heat Transfer 2103 | . 156 24 510 225 . 63 369 18 . 6 195 . . 207 321 9 . Effects 2 | . . . . . . . . . . . 2 . . . . . . Interference 2 | . . . . . . . . . . . 2 . . . . . . Siege Activations . | . . . . . . . . . . . . . . . . . . Martial Activations . | . . . . . . . . . . . . . . . . . . Shielding Activations . | . . . . . . . . . . . . . . . . . . Robots Disrupted 1 | . . . . . . . . . . . . . . . 1 . . Combat Hostiles 1 | . . . . . . . . . . . . . . . 1 . . Robots Corrupted 5 | . . . 1 . . . . 1 . . . 3 . . . . . Combat Hostiles . | . . . . . . . . . . . . . . . . . . Parts Fried 6 | . . . 1 . . . . 1 . . 2 2 . . . . . Impact Corruptions 14 | . . . 1 . . . . 3 . . 3 7 . . . . . Robots Melted . | . . . . . . . . . . . . . . . . . . Combat Hostiles . | . . . . . . . . . . . . . . . . . . Parts Melted . | . . . . . . . . . . . . . . . . . . Heat Transferred 740 | 111 555 . 74 . . . . . . . . . . . . . . Parts Sabotaged . | . . . . . . . . . . . . . . . . . . Parts Stolen . | . . . . . . . . . . . . . . . . . . Parts Stripped . | . . . . . . . . . . . . . . . . . . Power Chain Reactions . | . . . . . . . . . . . . . . . . . . Alert | -11 -10 -10 -9 -9 -9 -8 -8 -7 -7 -7 -7 -7 -7 -5 -5 -5 -4 ------- Run | Yrd Mat Min Mat Min Exi Min Mat Fac Was Fac Sto Rec Scr Fac Upp Upp Fac Maximum Alert Level 1 | . . . 1 . . . . . . . . . . 1 . . . Low Security (%) 88 | 100 100 100 54 100 . 100 100 100 100 100 100 100 . 88 . . 100 Level 1 11 | . . . 45 . . . . . . . . . . 11 . . . Level 2 . | . . . . . . . . . . . . . . . . . . Level 3 . | . . . . . . . . . . . . . . . . . . Level 4 . | . . . . . . . . . . . . . . . . . . Level 5 . | . . . . . . . . . . . . . . . . . . High Security . | . . . . . . . . . . . . . . . . . . Max Security . | . . . . . . . . . . . . . . . . . . Peak Influence 332 | 5 100 102 332 192 . 74 54 52 9 126 63 44 . 327 . . 97 Initial 127 | . . . . 127 . . . . 9 . 53 . . . . . . Average 53 | . 26 13 157 83 . 16 9 11 7 36 19 7 . 48 . . 23 Influence Increases 3869 | 5 388 271 961 85 . 239 275 172 . 307 175 133 . 527 224 . 107 Destroy 0b10 Robot/C 1760 | . 220 160 640 60 . 180 120 40 . 40 40 . . 120 140 . . Destroy 0b10 Robot/NC 170 | 5 20 20 45 . . . 25 10 . 10 . 15 . 15 5 . . Destroy Leader 398 | . 56 30 174 10 . 30 34 12 . 12 20 . . 20 . . . Allied During Kill 67 | . . 8 5 . . 20 . . . . . . . . 34 . . Successful Hack 262 | . 23 . 19 . . 7 32 18 . 61 20 28 . 54 . . . Select Force Hacks 180 | . 60 . . . . . 30 . . . . 90 . . . . . Disable Machine 105 | . . 15 . 15 . . 15 . . . 30 . . 30 . . . Destroy Structure 102 | . 9 8 18 . . 2 4 17 . 19 5 . . 18 . . 2 Partial Spotted 180 | . . . . . . . . 30 . 75 45 . . 15 . . 15 Lose Combat Pursuer 645 | . . 30 60 . . . 15 45 . 90 15 . . 255 45 . 90 Influence Decreases 3772 | 5 388 271 633 413 . 239 275 144 28 188 294 133 . 236 501 14 10 Entered New Map 399 | . . . . 201 . . . . 19 . 66 . . . 109 4 . Time Decay 2888 | 5 388 271 541 202 . 199 250 104 9 178 164 119 . 126 322 . 10 Lost Part 279 | . . . 60 10 . . 25 . . 10 54 . . 100 10 10 . Lost Ally 192 | . . . 32 . . 40 . 40 . . 10 . . 10 60 . . Purge Threat 14 | . . . . . . . . . . . . 14 . . . . . Squads Dispatched 37 | . 5 1 3 . . 1 5 8 . 4 3 . . 6 . . 1 Investigation 15 | . 3 1 1 . . 1 2 2 . 2 1 . . 2 . . . Extermination 5 | . . . . . . . . 1 . 2 1 . . 1 . . . Reinforcement 12 | . 2 . 2 . . . 3 2 . . 1 . . 1 . . 1 Assault 2 | . . . . . . . . . . . . . . 2 . . . Garrison 3 | . . . . . . . . 3 . . . . . . . . . Intercept . | . . . . . . . . . . . . . . . . . . Searches Triggered . | . . . . . . . . . . . . . . . . . . Construction Impeded . | . . . . . . . . . . . . . . . . . . Haulers Reinforced 1 | . . . . . . . . 1 . . . . . . . . . Active Scanning Responses . | . . . . . . . . . . . . . . . . . . Cargo Convoy Interrupts . | . . . . . . . . . . . . . . . . . . Stealth | -11 -10 -10 -9 -9 -9 -8 -8 -7 -7 -7 -7 -7 -7 -5 -5 -5 -4 --------- Run | Yrd Mat Min Mat Min Exi Min Mat Fac Was Fac Sto Rec Scr Fac Upp Upp Fac Distress Signals 11 | . 1 . 4 . . . 2 . . . 2 . . 2 . . . Communications Jammed . | . . . . . . . . . . . . . . . . . . Distress Signals . | . . . . . . . . . . . . . . . . . . Times Spotted 187 | . 16 8 50 3 . 6 9 6 4 10 13 . . 37 12 2 11 Peak Tracking Total 16 | . 3 3 6 3 . 3 3 3 4 4 8 . . 16 5 2 8 Tactical Retreats 21 | . . 1 4 . . . 1 1 . 4 1 . . 6 1 . 2 Traps | -11 -10 -10 -9 -9 -9 -8 -8 -7 -7 -7 -7 -7 -7 -5 -5 -5 -4 ------- Run | Yrd Mat Min Mat Min Exi Min Mat Fac Was Fac Sto Rec Scr Fac Upp Upp Fac Traps Triggered 12 | . 5 . 1 . . . . 3 . 2 . . . 1 . . . Indirectly . | . . . . . . . . . . . . . . . . . . Trap Hack Attempts 3 | . . . . . . . . . . . 3 . . . . . . Triggered . | . . . . . . . . . . . . . . . . . . Disarmed 1 | . . . . . . . . . . . 1 . . . . . . Reprogrammed . | . . . . . . . . . . . . . . . . . . Reused . | . . . . . . . . . . . . . . . . . . Traps Extracted . | . . . . . . . . . . . . . . . . . . Installed . | . . . . . . . . . . . . . . . . . . Triggered . | . . . . . . . . . . . . . . . . . . Machines | -11 -10 -10 -9 -9 -9 -8 -8 -7 -7 -7 -7 -7 -7 -5 -5 -5 -4 ---------- Run | Yrd Mat Min Mat Min Exi Min Mat Fac Was Fac Sto Rec Scr Fac Upp Upp Fac Machines Disabled 7 | . . 1 . 1 . . 1 . . . 2 . . 2 . . . Max in Single Turn 2 | . . 1 . 1 . . 1 . . . 1 . . 2 . . . Garrison Access 1 | . . . . . . . . . . . . . . 1 . . . Machines Repaired . | . . . . . . . . . . . . . . . . . . Machines Dismantled . | . . . . . . . . . . . . . . . . . . Machines Sabotaged . | . . . . . . . . . . . . . . . . . . Overloaded Fab Kills . | . . . . . . . . . . . . . . . . . . Hacking | -11 -10 -10 -9 -9 -9 -8 -8 -7 -7 -7 -7 -7 -7 -5 -5 -5 -4 --------- Run | Yrd Mat Min Mat Min Exi Min Mat Fac Was Fac Sto Rec Scr Fac Upp Upp Fac Machines Accessed 83 | . 9 1 11 . 1 1 10 11 . 12 5 10 4 7 1 . . Terminals 46 | . 6 . 8 . . 1 8 5 . 6 5 5 . 2 . . . Fabricators 6 | . . . . . . . . 3 . . . . . 3 . . . Repair Stations 5 | . 1 . 2 . . . . . . 1 . . . 1 . . . Recycling Units 13 | . 2 . 1 . . . 1 1 . 2 . 5 . 1 . . . Scanalyzers 3 | . . . . . . . 1 1 . 1 . . . . . . . Garrison Access 3 | . . . . . . . . 1 . 2 . . . . . . . Total Hacks 245 | . 30 1 35 . 2 6 40 31 . 28 14 23 9 25 1 . . Successful 131 | . 18 1 17 . 2 1 23 14 . 10 9 11 9 15 1 . . Failed 113 | . 12 . 18 . . 5 17 17 . 18 5 11 . 10 . . . Catastrophic 22 | . 4 . 1 . . 1 2 2 . 4 1 4 . 3 . . . Database Lockouts 1 | . . . . . . . . . . . . 1 . . . . . Manual 122 | . 21 . 21 . . 6 22 14 . 10 11 10 . 7 . . . Terminals 146 | . 23 . 29 . . 6 26 14 . 16 14 11 . 7 . . . Fabricators 19 | . . . . . . . . 9 . . . . . 10 . . . Repair Stations 11 | . 2 . 5 . . . . . . 3 . . . 1 . . . Recycling Units 35 | . 5 . 1 . . . 5 2 . 3 . 12 . 7 . . . Scanalyzers 14 | . . . . . . . 9 3 . 2 . . . . . . . Garrison Access 7 | . . . . . . . . 3 . 4 . . . . . . . Terminal Hacks 47 | . 5 1 4 . 2 1 7 4 . 3 4 3 9 3 1 . . Record 9 | . . . . . 2 . . . . . . . 7 . . . . Part Schematic 1 | . . . . . . . . . . . . . . 1 . . . Robot Analysis 4 | . 1 . 1 . . 1 1 . . . . . . . . . . Prototype ID Bank 6 | . 1 . 1 . . . 2 . . . 1 1 . . . . . Open Door 5 | . . 1 . . . . . . . . 2 . 1 . 1 . . Branch Access Points 3 | . . . . . . . 1 1 . 1 . . . . . . . Machine Index 1 | . . . . . . . . . . 1 . . . . . . . Terminal Index 2 | . . . . . . . . 1 . 1 . . . . . . . Unreport Threat 1 | . . . . . . . . . . . . 1 . . . . . Locate Traps 6 | . 1 . 2 . . . 1 1 . . 1 . . . . . . Hauler Manifests 3 | . 1 . . . . . . 1 . . . . . 1 . . . Registered Prototypes 1 | . . . . . . . . . . . . 1 . . . . . Zone Layout 4 | . 1 . . . . . 2 . . . . . . 1 . . . Proto ID Catalog 1 | . . . . . . . . . . . . . 1 . . . . Fabricator Hacks 11 | . . . . . . . . 3 . . . . . 8 . . . Network Status 2 | . . . . . . . . 1 . . . . . 1 . . . Load Schematic 5 | . . . . . . . . 2 . . . . . 3 . . . Build 4 | . . . . . . . . . . . . . . 4 . . . Repair Station Hacks 6 | . 2 . 4 . . . . . . . . . . . . . . Scan Component 3 | . 1 . 2 . . . . . . . . . . . . . . Repair 3 | . 1 . 2 . . . . . . . . . . . . . . Recycling Unit Hacks 12 | . 2 . 1 . . . 1 1 . 2 . 4 . 1 . . . Retrieve Components 12 | . 2 . 1 . . . 1 1 . 2 . 4 . 1 . . . Scanalyzer 9 | . . . . . . . 8 . . 1 . . . . . . . Insert Component 5 | . . . . . . . 4 . . 1 . . . . . . . Analyze 4 | . . . . . . . 4 . . . . . . . . . . Garrison Access Hacks . | . . . . . . . . . . . . . . . . . . Unauthorized Hacks 46 | . 9 . 8 . . . 7 6 . 4 5 4 . 3 . . . Terminals 35 | . 7 . 8 . . . 6 2 . 4 5 1 . 2 . . . Track 1 | . . . . . . . . . . . . . . 1 . . . Assimilate 2 | . . . . . . . . . . 1 1 . . . . . . Botnet 12 | . 2 . 2 . . . 1 2 . 2 1 1 . 1 . . . Disrupt 1 | . . . . . . . . . . . 1 . . . . . . Operators 2 | . 1 . . . . . . . . 1 . . . . . . . Skim 17 | . 4 . 6 . . . 5 . . . 2 . . . . . . Fabricators 4 | . . . . . . . . 4 . . . . . . . . . Liberate 1 | . . . . . . . . 1 . . . . . . . . . Haulers 1 | . . . . . . . . 1 . . . . . . . . . Recompile 2 | . . . . . . . . 2 . . . . . . . . . Repair Stations . | . . . . . . . . . . . . . . . . . . Recycling Units 7 | . 2 . . . . . 1 . . . . 3 . 1 . . . Tunnel 6 | . 2 . . . . . 1 . . . . 3 . . . . . Fedlink 1 | . . . . . . . . . . . . . . 1 . . . Scanalyzers . | . . . . . . . . . . . . . . . . . . Garrison Access . | . . . . . . . . . . . . . . . . . . Data Cores Recovered 1 | . . . . . . . 1 . . . . . . . . . . Used . | . . . . . . . . . . . . . . . . . . Hacking Detections 64 | . 7 . 10 . . 1 10 9 . 11 4 7 . 5 . . . Full Trace Events 9 | . . . 1 . . 1 1 . . 2 1 2 . 1 . . . Feedback Events 1 | . . . . . . . . . . . 1 . . . . . . Corruption 1 | . . . . . . . . . . . 1 . . . . . . Feedback Blocked . | . . . . . . . . . . . . . . . . . . Robot Schematics Acquired . | . . . . . . . . . . . . . . . . . . Robots Built . | . . . . . . . . . . . . . . . . . . Authchips . | . . . . . . . . . . . . . . . . . . Time . | . . . . . . . . . . . . . . . . . . Total Robot Build Rating . | . . . . . . . . . . . . . . . . . . Part Schematics Acquired 4 | . . . . . . . 3 . . . . . . 1 . . . Parts Built 3 | . . . . . . . . . . . . . . 3 . . . Authchips 2 | . . . . . . . . . . . . . . 2 . . . Time 195 | . . . . . . . . . . . . . . 195 . . . Total Part Build Rating 6 | . . . . . . . . . . . . . . 6 . . . Parts Repaired 3 | . 1 . 2 . . . . . . . . . . . . . . Time 78 | . 26 . 52 . . . . . . . . . . . . . . Parts Recycled . | . . . . . . . . . . . . . . . . . . Recycled Matter . | . . . . . . . . . . . . . . . . . . Retrieved Matter . | . . . . . . . . . . . . . . . . . . Retrieved Components 45 | . 12 . 2 . . . 10 10 . 1 . 8 . 2 . . . Parts Scanalyzed 4 | . . . . . . . 4 . . . . . . . . . . Part Schematics Acquired 3 | . . . . . . . 3 . . . . . . . . . . Parts Damaged 2 | . . . . . . . 1 . . 1 . . . . . . . Bothacking | -11 -10 -10 -9 -9 -9 -8 -8 -7 -7 -7 -7 -7 -7 -5 -5 -5 -4 ------------ Run | Yrd Mat Min Mat Min Exi Min Mat Fac Was Fac Sto Rec Scr Fac Upp Upp Fac Used RIF Installer . | . . . . . . . . . . . . . . . . . . Robots Hacked 7 | . . . . . 4 . 1 2 . . . . . . . . . Non-combat 5 | . . . . . 3 . . 2 . . . . . . . . . Combat 2 | . . . . . 1 . 1 . . . . . . . . . . Robot Hacks Applied 7 | . . . . . 4 . 1 2 . . . . . . . . . parse_system 5 | . . . . . 4 . 1 . . . . . . . . . . find_chute 2 | . . . . . . . . 2 . . . . . . . . . Relay Couplers Released 1 | . . . . . . . . . . . . . . 1 . . . Machine Destruction 1 | . . . . . . . . . . . . . . 1 . . . Fabnet Peak Effective % . | . . . . . . . . . . . . . . . . . . Robots Rewired 1 | . . . . . . . . . . . . . . . 1 . . Allies Hacked . | . . . . . . . . . . . . . . . . . . Hacks Repelled . | . . . . . . . . . . . . . . . . . . Allies | -11 -10 -10 -9 -9 -9 -8 -8 -7 -7 -7 -7 -7 -7 -5 -5 -5 -4 -------- Run | Yrd Mat Min Mat Min Exi Min Mat Fac Was Fac Sto Rec Scr Fac Upp Upp Fac Total Allies 16 | . . 2 . 3 . . . 3 . 1 1 . . . 6 . . Largest Group 5 | . . 2 2 3 3 3 . 3 . . 1 . . . 5 . . Highest-Rated Group 235 | . . 42 42 40 40 40 . 48 . . 10 . . . 235 . . Highest-Rated Ally 47 | . . 31 31 16 16 16 . 16 . . 10 . . . 47 . . Total Orders 1 | . . . . . . . . . . . . . . 1 . . . EXPLORE 1 | . . . . . . . . . . . . . . 1 . . . Ally Attacks 113 | . . 10 9 . . 26 . 19 . . . . . . 49 . . Total Damage 1456 | . . 150 64 . . 257 . 277 . . . . . . 708 . . Kills 17 | . . 3 1 . . 6 . 2 . . . . . . 5 . . Allies Corrupted 2 | . . . . . . . . 1 . . . . . 1 . . . Allies Melted . | . . . . . . . . . . . . . . . . . . Intel | -11 -10 -10 -9 -9 -9 -8 -8 -7 -7 -7 -7 -7 -7 -5 -5 -5 -4 ------- Run | Yrd Mat Min Mat Min Exi Min Mat Fac Was Fac Sto Rec Scr Fac Upp Upp Fac Active Infowar (turns) 13861 | 43 1487 2209 2925 453 499 940 1909 453 23 406 422 . 651 275 1083 5 78 Terrain 106 | . . . 25 . . . 81 . . . . . . . . . . Structural 1260 | . . . . . . . . 409 23 406 422 . . . . . . Seismic 13327 | 43 1487 2209 2900 453 499 940 1891 453 23 375 376 . 651 253 774 . . Machine Analysis 1264 | . . . . . . . . . . . . . . 98 1083 5 78 Robot Analysis Total 4 | . 1 . 1 . . 1 1 . . . . . . . . . . Derelict Logs Recovered 3 | . . 2 . . . . . . . . . . . . 1 . . Drone Launches 2 | . . . . . . . . . . . . . . 2 . . . Drone Recoveries . | . . . . . . . . . . . . . . . . . . Exploration | -11 -10 -10 -9 -9 -9 -8 -8 -7 -7 -7 -7 -7 -7 -5 -5 -5 -4 ------------- Run | Yrd Mat Min Mat Min Exi Min Mat Fac Was Fac Sto Rec Scr Fac Upp Upp Fac Turns Passed 15270 | 127 1565 2220 3074 490 499 975 1936 453 23 406 453 595 661 627 1083 5 78 Spaces Moved 9333 | 66 579 661 862 185 205 375 718 892 69 909 370 592 1110 686 945 8 101 Core 82 | 5 . . . . . . . . . . . . . 5 72 . . Treads 3781 | 61 579 661 862 185 205 375 718 18 . . . . . 117 . . . Legs . | . . . . . . . . . . . . . . . . . . Wheels 982 | . . . . . . . . . . . . . . . 873 8 101 Hover 1732 | . . . . . . . . . . . . 434 1110 188 . . . Flight 2756 | . . . . . . . . 874 69 909 370 158 . 376 . . . Fastest Speed 25 | 50 160 320 160 240 240 240 240 27 27 26 26 56 56 25 70 70 70 Average Speed 136 | 153 242 320 251 240 240 240 241 32 27 27 40 94 56 74 94 70 70 Slowest Speed 480 | 160 480 320 320 240 240 240 245 309 27 104 200 200 56 197 300 70 70 Overloaded Moves . | . . . . . . . . . . . . . . . . . . Propulsion Burnouts . | . . . . . . . . . . . . . . . . . . Robots Hopped 18 | . . . . . . . . 5 . 2 3 . . 8 . . . Potential Cave-ins 3 | . . . . . . . . . . 3 . . . . . . . Cave-ins Triggered 1 | . . . . . . . . . . 1 . . . . . . . Exploration Rate (%) 55 | 4 96 100 77 33 62 81 49 31 80 32 60 92 85 24 86 4 4 Regions Visited 17 Branch Regions 9 Pre-discovered Areas 11 | . 2 . 2 . 1 . 2 . . . . 3 1 . . . . Known Exits Taken 8 | . . . . . . 1 1 . . 1 . 1 1 1 1 1 . Unknown Exits Taken 7 | 1 1 1 1 1 1 . . . . . 1 . . . . . . Scrap Searched 13 | . . 1 . 2 . 1 . . . . . . 5 . 4 . . Spaces Dug 76 | . . 8 4 . . . . 17 . 32 5 . . 9 . . 1 Terrain Destroyed 98 | . 7 8 15 . . 2 2 17 . 32 5 . . 9 . . 1 Melee 45 | . . . 3 . . . . 17 . 10 5 . . 9 . . 1 Projectile 11 | . . . 7 . . 2 2 . . . . . . . . . . AOE 42 | . 7 8 5 . . . . . . 22 . . . . . . . Terrain Rammed . | . . . . . . . . . . . . . . . . . . Walls Destroyed . | . . . . . . . . . . . . . . . . . . Machines Disabled . | . . . . . . . . . . . . . . . . . . Actions | -11 -10 -10 -9 -9 -9 -8 -8 -7 -7 -7 -7 -7 -7 -5 -5 -5 -4 --------- Run | Yrd Mat Min Mat Min Exi Min Mat Fac Was Fac Sto Rec Scr Fac Upp Upp Fac Total 11270 | 81 675 742 1588 211 210 431 847 1022 72 1026 640 617 1149 761 1086 7 105 Wait 1221 | 2 29 62 549 14 . 42 52 25 . 60 229 16 25 26 90 . . Move 9286 | 65 578 660 861 184 204 374 717 882 68 903 363 591 1109 675 944 7 101 Hop 12 | . . . . . . . . 5 . 2 3 . . 2 . . . Pick Up 86 | 3 10 3 39 . . 1 9 4 . 3 2 2 1 3 6 . . Fast Attach 78 | 7 8 . 9 . . . 7 2 2 3 5 3 6 13 10 . 3 Attach 43 | . . . 5 1 . . 6 12 . 1 7 1 1 6 3 . . Detach 23 | . . . 1 . . . . 10 . 2 2 . 4 3 1 . . Swap 65 | . 11 6 24 2 2 3 7 2 . 6 2 . . . . . . Drop 73 | . 4 . 10 . . 1 11 20 2 7 4 . 3 9 2 . . Fire 183 | 4 33 4 84 10 . 10 34 . . 2 . . . 2 . . . Melee 133 | . . . 3 . 4 . 1 28 . 21 20 4 . 22 29 . 1 Ram . | . . . . . . . . . . . . . . . . . . Kick . | . . . . . . . . . . . . . . . . . . Crush 15 | . 2 7 3 . . . 3 . . . . . . . . . . Escape Stasis 48 | . . . . . . . . 32 . 16 . . . . . . . Rewire 1 | . . . . . . . . . . . . . . . 1 . . Trap 3 | . . . . . . . . . . . 3 . . . . . . Miscellaneous . | . . . . . . . . . . . . . . . . . . Route ------- -11/Scrapyard -10/Materials (discovered 6 exits: *Mat x3 / *Min x2 / [*Sub]) -10/Mines (discovered 2 exits: *Mat x2) -9/Materials (discovered 4 exits: *Mat x3 / [*Min]) -9/Mines (discovered 2 exits: *Mat / *Exi) -9/Exiles -8/Mines -8/Materials (discovered 3 exits: *Fac x3) -7/Factory (discovered 6 exits: Fac x2 / Sto x2 / *Low x2) -7/Waste -7/Factory (discovered 5 exits: *Fac / *Sto x2 / *Low x2) -7/Storage -7/Recycling -7/Scraptown (discovered 2 exits: *Fac x2) -5/Factory (discovered 3 exits: *Upp / Ext x2) -5/Upper Caves (discovered 2 exits: *Upp / *War) -5/Upper Caves -4/Factory History --------- Turn | Location | Event 28 | -11/Scrapyard | Discovered new exit (range 14) 128 | -11/Scrapyard | Entered Materials 129 | -10/Materials | Met a group of wandering Federalists 303 | -10/Materials | Build established: Mutant 537 | -10/Materials | Discovered new exit (range 4) 641 | -10/Materials | Discovered new exit (range 13) 704 | -10/Materials | Discovered new exit (range 7) 853 | -10/Materials | Discovered new exit (range 12) 989 | -10/Materials | Repaired Lgt. Armor Plating 1195 | -10/Materials | Discovered new exit (range 16) 1584 | -10/Materials | Discovered new exit (range 9) 1693 | -10/Materials | Entered Mines 1908 | -10/Mines | Learned Materials interactive machine intel 2033 | -10/Mines | Discovered new exit (range 10) 2278 | -10/Mines | Met a Derelict shopkeep closing up shop 2877 | -10/Mines | Learned 2 Materials zone layouts 3332 | -10/Mines | Discovered new exit (range 4) 3913 | -10/Mines | Entered Materials 3913 | -9/Materials | Accompanied by 2 allies 3913 | -9/Materials | Evolved 2 slots: Propulsion x1, Utility x1 3915 | -9/Materials | Loaded intel: 18 interactive machine locations 3918 | -9/Materials | Led the pair of lost Derelicts to an unsafe place 4621 | -9/Materials | Build established: Scavenger-Mutant 4628 | -9/Materials | Discovered new exit (range 6) 4886 | -9/Materials | Lost 4 parts (1p1n1u1w) 4887 | -9/Materials | Destroyed 7 combat bots 5157 | -9/Materials | Repaired Lgt. Treads? 5226 | -9/Materials | Discovered new exit (range 12) 6319 | -9/Materials | Identified exit to Materials 6435 | -9/Materials | Learned location of Zion (-6) 6494 | -9/Materials | Repaired Huge Storage Unit 6543 | -9/Materials | Learned location of 2 exits from Materials 6627 | -9/Materials | Learned Storage trap positions 6987 | -9/Materials | Entered Mines 7026 | -9/Mines | Assembled infested the area 7237 | -9/Mines | Assisted by bots powering up and referring to "LRC-V3" 7413 | -9/Mines | Discovered exit to Materials (range 5) 7444 | -9/Mines | Deemed a non-threat by the Exiles lab entrance 7444 | -9/Mines | Discovered new exit (range 5) 7477 | -9/Mines | Entered Exiles 7477 | -9/Exiles | Accompanied by 3 allies 7533 | -9/Exiles | Met 8R-AWN 7576 | -9/Exiles | Met EX-HEX 7645 | -9/Exiles | Met EX-BIN 7726 | -9/Exiles | Met EX-DEC 7955 | -9/Exiles | Discovered new exit (range 10) 7976 | -9/Exiles | Entered Mines 7976 | -8/Mines | Accompanied by 3 allies 8333 | -8/Mines | Discovered exit to Materials (range 9) 8951 | -8/Mines | Entered Materials 8951 | -8/Materials | Evolved 2 slots: Propulsion x1, Utility x1 8952 | -8/Materials | Identified exit to Factory 9252 | -8/Materials | Lost 4 parts (1n2u1w) 9762 | -8/Materials | Met 7R-MNS 10002 | -8/Materials | Learned Storage stockpile data 10149 | -8/Materials | Learned 4 Lower Caves zone layouts 10295 | -8/Materials | Learned location of Lower Caves (-6) 10887 | -8/Materials | Entered Factory 10887 | -7/Factory | Evolved 2 slots: Propulsion x1, Utility x1 10888 | -7/Factory | Caught up to 7R-MNS 10888 | -7/Factory | Identified exit to Factory 10888 | -7/Factory | Identified exit to Lower Caves 10979 | -7/Factory | Garrison activated, responded to threat 11081 | -7/Factory | Discovered exit to Lower Caves (range 5) 11201 | -7/Factory | Identified exit to Storage 11340 | -7/Factory | Manually triggered Chute Trap 11340 | -7/Factory | Sucked down chute 11340 | -7/Factory | Entered Waste 11347 | -7/Waste | Spotted C-40 Crusher 11350 | -7/Waste | Spotted C-40 Crusher 11352 | -7/Waste | Spotted C-40 Crusher 11352 | -7/Waste | Spotted C-40 Crusher 11354 | -7/Waste | Spotted C-40 Crusher 11355 | -7/Waste | EMP discharged 11357 | -7/Waste | Discovered new exit (range 16) 11363 | -7/Waste | Entered Factory 11550 | -7/Factory | Build established: Hacker-Sprinter 11637 | -7/Factory | Discovered exit to Factory (range 13) 11674 | -7/Factory | Crushed by falling debris 11769 | -7/Factory | Entered Storage 11770 | -7/Storage | Loaded intel: 18 trap records 12205 | -7/Storage | Core integrity fell below 50% 12214 | -7/Storage | Used back door to open Recycling access 12214 | -7/Storage | Discovered new exit (range 5) 12222 | -7/Storage | Entered Recycling 12247 | -7/Recycling | Lost 14 parts (1p6n6u1w) 12391 | -7/Recycling | Build established: Mutant 12803 | -7/Recycling | Scanned before Scraplab entrance 12811 | -7/Recycling | Entered Scraplab 12816 | -7/Recycling | Discovered new exit (range 3) 12816 | -7/Recycling | Identified exit to Scraptown 12817 | -7/Recycling | Entered Scraptown 12817 | -7/Scraptown | System corruption cleaned by C-Scrubber 12957 | -7/Scraptown | Discovered new exit (range 11) 12976 | -7/Scraptown | Heard Great Nut preacher, LISTEN AND RECITE! 12993 | -7/Scraptown | Visited Spacefarers 13017 | -7/Scraptown | Visited Awakened 13091 | -7/Scraptown | Visited SPCMW 13107 | -7/Scraptown | Visited UFD Registry 13107 | -7/Scraptown | Registered with UFD as "Smoothplate" 13120 | -7/Scraptown | Visited Science Guys 13138 | -7/Scraptown | Visited Botcube Research 13146 | -7/Scraptown | Visited Sword Containment 13236 | -7/Scraptown | Visited Scrapoid Pod Storage 13244 | -7/Scraptown | Visited Junk Repository 13260 | -7/Scraptown | Visited Research Penetration Think Tank 13274 | -7/Scraptown | Visited Abandonware Association 13278 | -7/Scraptown | Learned abandonware demo "OVRCLOCK.EXE" 13281 | -7/Scraptown | Learned abandonware demo "ERRANTS.EXE" 13281 | -7/Scraptown | Learned abandonware demo "MELTYB.EXE" 13311 | -7/Scraptown | Visited Observation Area 13363 | -7/Scraptown | Found Scrapoid Pod 13444 | -7/Scraptown | Met Optimus 13444 | -7/Scraptown | Accepted into 0bPrime 13474 | -7/Scraptown | Civil war broke out across Scraptown 13474 | -7/Scraptown | Discovered new exit (range 3) 13474 | -7/Scraptown | Identified exit to Factory 13476 | -7/Scraptown | Build established: Hacker-Mutant 13478 | -7/Scraptown | Entered Factory 13478 | -5/Factory | Evolved 4 slots: Propulsion x1, Utility x3 13479 | -5/Factory | Identified exit to Extension 13569 | -5/Factory | Spotted B-75 Beast 13643 | -5/Factory | Loaded intel: 8 recycling unit locations 13689 | -5/Factory | Lost 3 parts (2n1u) 13789 | -5/Factory | Discovered new exit (range 6) 13791 | -5/Factory | Fabricated Imp. Flight Unit? 13851 | -5/Factory | Identified exit to Upper Caves 13986 | -5/Factory | Fabricated Imp. Flight Unit (x1) 14008 | -5/Factory | Fabricated Imp. Flight Unit? 14094 | -5/Factory | Core integrity fell below 50% 14105 | -5/Factory | Entered Upper Caves 14131 | -5/Upper Caves | Lost 10 parts (2p6n1u1w) 14132 | -5/Upper Caves | A Derelict revealed a hidden shortcut to "reach the base" 14132 | -5/Upper Caves | Identified exit to Warlord 14228 | -5/Upper Caves | Learned Factory security intel 14590 | -5/Upper Caves | Attracted the attention of an 0b10 checkpoint 14836 | -5/Upper Caves | Ambushed by research squad 14896 | -5/Upper Caves | Core integrity fell below 20% 14899 | -5/Upper Caves | System corruption reached 10% 14910 | -5/Upper Caves | Scrapoid Pod released 05U05-D (x5) 14926 | -5/Upper Caves | Lost 4 parts (1p1n2u) 14972 | -5/Upper Caves | Found Scrap Suit 15179 | -5/Upper Caves | Found Scrap Suit 15185 | -5/Upper Caves | Discovered new exit (range 6) 15187 | -5/Upper Caves | Identified exit to Upper Caves 15188 | -5/Upper Caves | Entered another Upper Caves area 15190 | -5/Upper Caves | Attracted the attention of an 0b10 checkpoint 15191 | -5/Upper Caves | Discovered new exit (range 4) 15193 | -5/Upper Caves | Identified exit to Factory 15193 | -5/Upper Caves | Entered Factory 15193 | -4/Factory | Evolved 2 slots: Utility x2 15269 | -4/Factory | Build established: Scavenger-Scrapper 15271 | -4/Factory | Self-destructed Last Messages --------------- 15193_ Repair Station x1 PARAMETERS=UTILITY+2 LOCATION=FACTORY GOAL=ESCAPE Loading Factory security intel (x20)... 15220_ O-16 Technician: "IFF HANDSHAKE FAILED. SECURING TERMINAL." 15221_ ALERT: All DSF locations entering lockdown mode. 15224_ Acquired Adv. Melee Analysis Suite. 15241_ Pressure Siphon disabled. 15241_ K-01 Serf collects debris. 15253_ ALERT: Hostiles spotted, dispatching reinforcements to Terminal F018. 15257_ K-01 Serf cleans the Pressure Siphon. 15258_ >> Machine Analyzer network decryption results: 15258_ Repair Station x3 15271_ Slug penetrates Wall. 15271_ Slug penetrates Repair Station. Map ----- +----------------------------------------------------+ | ?????????????????????????????????????????????????? | | ?????????????????????????????????????????????????? | | ?????????????????????????????????????????????????? | | ?????????????????????????????????????????????????? | | ?????????????????????????????????????????????????? | | ?????????????????????????????????????????????????? | | ?????????????????????????????????????????????????? | | ?????????????????????????????????????????????????? | | ?????????????????????????????????????????????????? | | ?????????????????????????????????????????????????? | | ?????????????????????????????????????????????????? | | ?????????????????????????????????????????????????? | | ????????????????????????????#+###????????????????? | | ???????????????????????????? #????????????????? | | ???????????????????????????? u ##???????????????? | | ???????????????????????????? ????????????????? | | ??????????????????????????? ????????????????? | | ???????????#####??????????? """ """?????????????? | | ???????????# ????????? """ """?????????????? | | ???????????# ####### """ """ ????????????? | | ???????????# / h ???????????? | | ???????????# """ ### """ """???????"""???? | | ???????????? """ ????# """ """?????"""""???? | | ???????????? """????### """ """ #??"""""???? | | ??? ??? ??????# #??????????? | | ??? ########### @ " "" #????"""???? | | ??? "R"" ???"""""???? | | ??? k """"????????"""""???? | | ???? """ """ ???????????????? | | ?????????""" """ gg####### ?????????????? | | ??????? """ """ #??????#########??????????????? | | ?# """ """ #?????????????????????????????? | | ?+ #?????????????????????????????? | | ??????# """ """ #?????????????????????????????? | | ???#### """ """ #?????????????????????????????? | | ??? / """ """ #?????????????????????????????? | | ??????# """ """ #?????????????????????????????? | | ??????# #?????????????????????????????? | | ??????# """ """ #?????????????????????????????? | | ??????# """ """ #?????????????????????????????? | | ??????# """ """ #?????????????????????????????? | | ??????# """ """ #?????????????????????????????? | | ??????# #?????????????????????????????? | | ??????# """ """ #?????????????????????????????? | | ??????# """ """ #?????????????????????????????? | | ####??# """ """ #?????????????????????????????? | | #??# """ """ #?????????????????????????????? | | #### #?????????????????????????????? | | """ """ #?????????????????????????????? | | """ """ #?????????????????????????????? | +----------------------------------------------------+ Best States ------------- Heat Dissipation 59 Energy Generation 19 Energy Capacity 315 Matter Stores 300 Matter Capacity 300 Sight Range 16 Terrain Scan Range 16 Terrain Scan Density 10 Armor Coverage 150 Propulsion Shielding 66 Evasion (%) 65 Melee Accuracy 24 Recoil Reduction 4 Salvage Targeting 4 Offensive Hacking 10 Defensive Hacking 25 Authchip Count 2 Item Schematics ----------------- Imp. Flight Unit | -8/Materials | Scanalyzed Imp. Propulsion Shielding | -8/Materials | Scanalyzed Mni. Grenade Launcher | -8/Materials | Scanalyzed Adv. Hacking Suite | -5/Factory | Hacked Robot Schematics ------------------ None Fabricated ------------ Imp. Flight Unit | x1 | -5/Factory | Authchip Imp. Flight Unit | x1 | -5/Factory Imp. Flight Unit | x1 | -5/Factory | Authchip Repaired ---------- Lgt. Armor Plating | 14% | -10/Materials Lgt. Treads | 28% | -9/Materials Huge Storage Unit | 39% | -9/Materials Alien Tech Used ----------------- None Achievements -------------- None Challenges ------------ None Game ------ Seed CatalystTerrorSpiker Manual? 0 Play Time 01:33:24 Cumulative 527.5 hours Start 2025.07.21 @ 14:26:05 End 2025.07.21 @ 15:59:39 Sessions 1 Manual Loads 0 Difficulty Rogue Special Mode None Game No. 276 Rogue 213 Adventurer 63 Explorer 0 Win Type - Total 9 Types 8/0/0/1/0/0/0/0/0/0 Lore% 90 Gallery% 82 Achievement% 67 Wizard Run 0 Options --------- Layout 2 ASCII 0 Keyboard 1 Movement Numpad Keybinds 0 Fullscreen 2 Font 24/Terminus Map View 50x44 Zoom Use 0% Tactical HUD 1 Map Filters NONE Filters NONE Steam 1 RUN: 20080039-ff61-4083-8b8d-67291d2d7771